Cogmind - Beta 10.2 @@@ ROGUE MODE // 2021.07.14 @ 18:06:43 Player: Man Suit Result: Destroyed by P1-3CE with P1-3CE's Gatling Flakker Performance ------------- Evolutions (3) 1500 Regions Visited (10) 2000 Robots Destroyed (119) 595 Value Destroyed (4322) 4322 Prototype IDs (30) 600 Alien Tech Used (0) 0 Bonus (833) 833 TOTAL SCORE: 9850 Bonus ------- High Alert Combat Kills 533 Aligned with FarCom 300 Cogmind --------- Core Integrity 0/700 Matter 147/300 Energy 170/170 System Corruption 7% Temperature Cool (342) Movement Core (1200) Ox23 Location -7/Zion Parts ------- > --- POWER (1) -------- Micro Fission Core > --- PROPULSION (3) --- (None) > --- UTILITY (6) ------ High-capacity Storage Unit Improved Targeting Computer Powered Armor Bomb Drone Bay (6/16) > --- WEAPON (3) ------- Heavy Machine Gun Mini Assault Cannon Magnetic Acceleration Cannon > --- INVENTORY (12) --- Heavy Ion Cannon AWS/Autocannon Phasing Sabre Peak State ------------ > --- POWER ------------ Light Angular Momentum Engine > --- PROPULSION ------- Light Treads Light Treads Light Treads > --- UTILITY ---------- High-capacity Storage Unit Hardened Light Armor Plating Bomb Drone Bay > --- WEAPON ----------- AWS/Autocannon > --- INVENTORY -------- Light Nuclear Core Large Storage Unit Large Battery Medium Matter Pod Improved Sensor Array Improved Signal Interpreter Heavy EM Pulse Gun Heavy EM Pulse Gun Heavy Particle Gun Heavy Particle Gun Grenade Launcher Power Maul [Rating: 57] Favorites ----------- Power Heavy Ion Engine Engine Heavy Ion Engine Power Core Micro Fission Core Propulsion Light Treads Treads Light Treads Leg Aluminum Leg Wheel Armored Wheel Utility High-capacity Storage Unit Device Improved Cooling System Storage High-capacity Storage Unit Processor Advanced Targeting Computer Protection Light Armor Plating Weapon Plasma Cannon Energy Gun Heavy EM Pulse Gun Energy Cannon Plasma Cannon Ballistic Gun Heavy Battle Rifle Ballistic Cannon Mini Assault Cannon Launcher Grenade Launcher Impact Weapon Power Maul Build | -11 -10 -10 -10 -9 -8 -8 -7 -7 -7 -7 ------- Run | Scr Mat Min Exi Min Mat Sto Fac Low Low Zio Slots Evolved 6 | . . . . . 4 . 2 . . . Power . | . . . . . . . . . . . Propulsion 1 | . . . . . 1 . . . . . Utility 4 | . . . . . 2 . 2 . . . Weapon 1 | . . . . . 1 . . . . . Parts Attached 132 | 6 6 3 8 2 9 31 31 12 16 8 Power 11 | 1 . . 1 1 2 3 2 . 1 . Engine 6 | 1 . . 1 . 1 1 2 . . . Core 5 | . . . . 1 1 2 . . 1 . Reactor . | . . . . . . . . . . . Propulsion 26 | 2 . . 2 . 1 6 5 1 8 1 Treads 15 | . . . 2 . 1 5 5 . 2 . Leg 10 | 2 . . . . . 1 . 1 5 1 Wheel 1 | . . . . . . . . . 1 . Hover . | . . . . . . . . . . . Flight . | . . . . . . . . . . . Utility 42 | 1 3 3 4 1 1 9 11 4 3 2 Device 9 | . . 1 1 . 1 1 2 1 1 1 Storage 4 | 1 1 . 2 . . . . . . . Processor 9 | . . . . . . 6 2 1 . . Hackware . | . . . . . . . . . . . Protection 20 | . 2 2 1 1 . 2 7 2 2 1 Artifact . | . . . . . . . . . . . Weapon 53 | 2 3 . 1 . 5 13 13 7 4 5 Energy Gun 7 | 1 2 . 1 . 1 . 1 . . 1 Energy Cannon 9 | . . . . . . . 6 2 1 . Ballistic Gun 5 | 1 1 . . . . . . . 1 2 Ballistic Cannon 14 | . . . . . 3 7 1 . 1 2 Launcher 6 | . . . . . . . 2 3 1 . Special Weapon . | . . . . . . . . . . . Impact Weapon 12 | . . . . . 1 6 3 2 . . Slashing Weapon . | . . . . . . . . . . . Piercing Weapon . | . . . . . . . . . . . Special Melee Weapon . | . . . . . . . . . . . Unidentified Prototypes 5 | . . 1 1 . 1 1 1 . . . Parts Lost 25 | . . . . . . 4 . 4 6 11 Power 2 | . . . . . . 1 . . 1 . Propulsion 9 | . . . . . . 2 . 1 3 3 Utility 6 | . . . . . . 1 . 1 . 4 Weapon 8 | . . . . . . . . 2 2 4 Highest Loss Streak 11 | . . . . . . 4 . 3 3 11 Average Slot Usage (%) 93 | . 97 100 99 100 69 76 97 94 98 95 Engine 7 | . 14 14 14 6 1 4 6 7 1 . Core 2 | . . . . 7 7 3 . . 5 7 Treads 13 | . . . 7 28 25 24 22 15 1 6 Leg 9 | . 28 28 20 . . 1 . 2 19 6 Device 4 | . . 3 . . 7 1 3 9 7 6 Storage 9 | . 14 14 14 14 9 9 7 7 7 7 Processor 11 | . . . . . . 15 20 20 15 14 Protection 10 | . 11 10 13 14 9 8 11 7 13 13 Energy Gun 8 | . 24 28 28 28 . . 2 . . 4 Energy Cannon 4 | . . . . . . . 9 7 8 1 Ballistic Gun 1 | . 3 . . . . . . . 5 7 Ballistic Cannon 4 | . . . . . 7 8 2 7 6 8 Impact Weapon 1 | . . . . . . . 4 3 . . Naked Turns . | . . . . . . . . . . . Heaviest Build 114 | 12 30 30 46 48 114 114 106 76 80 61 Greatest Support 63 | 20 20 20 40 40 60 60 63 63 35 12 Greatest Overweight (x) 5 | . 1 1 1 1 2 5 1 1 5 5 Average Overweight (x) 1 | . . 1 . 1 1 1 . . 2 4 Largest Inventory Capacity 18 | 6 10 10 18 12 12 12 12 12 12 12 Average Capacity 11 | 5 8 10 10 12 12 12 12 12 12 12 Most Carried 12 | 4 10 10 12 12 12 12 12 12 12 12 Average Carried 10 | 2 8 9 9 11 10 11 11 10 11 11 Final Capacity 12 | 6 10 10 12 12 12 12 12 12 12 12 Final Carried 12 | 4 10 10 12 12 12 12 12 12 12 5 Class Distribution -------------------- 56% | Mutant 22% | Scavenger-Gunner 11% | Gunner 6% | Skirmisher Dominant Class ---------------- Mutant | -10/Materials Mutant | -10/Mines Mutant | -10/Exiles Mutant | -9/Mines Skirmisher | -8/Materials Scavenger-Gunner | -8/Storage Mutant | -7/Factory Mutant | -7/Lower Caves Scavenger-Gunner | -7/Lower Caves Derelict-Gunner | -7/Zion Resources | -11 -10 -10 -10 -9 -8 -8 -7 -7 -7 -7 ----------- Run | Scr Mat Min Exi Min Mat Sto Fac Low Low Zio Matter Collected 2267 | 221 99 30 80 20 90 245 545 486 400 51 Remotely . | . . . . . . . . . . . Salvage Created 3323 | . 148 102 . 212 313 616 831 312 738 51 Parts 187 | . 12 11 . 13 24 34 47 19 26 1 Haulers Intercepted 4 | . 1 . . . . 1 2 . . . Recyclers Shooed 2 | . . . . . 1 . 1 . . . Parts Field Recycled . | . . . . . . . . . . . Retrieved Matter . | . . . . . . . . . . . Parts Self-Destructed 43 | . . . . . . . . 14 29 . Prevented 2 | . . . . . . . . 2 . . Kills | -11 -10 -10 -10 -9 -8 -8 -7 -7 -7 -7 ------- Run | Scr Mat Min Exi Min Mat Sto Fac Low Low Zio Combat Hostiles Destroyed 102 | . 6 6 . 9 12 22 16 15 15 1 Guns 19 | . 5 6 . 6 . . 1 . . 1 Cannons 63 | . . . . . 12 21 11 4 15 . AOE 20 | . 1 . . 3 . 1 4 11 . . Classes Destroyed 15 | . 2 . . 2 2 3 6 . . . Worker 3 | . . . . . . . 3 . . . Builder 4 | . . . . . . . 4 . . . Tunneler 1 | . . . . . . . 1 . . . Hauler 4 | . 1 . . . . 1 2 . . . Recycler 1 | . . . . . . . 1 . . . Operator 1 | . . . . . . 1 . . . . Watcher 6 | . . . . . 4 2 . . . . Swarmer 25 | . 6 6 . 4 3 . . 6 . . Grunt 38 | . . . . 2 8 9 6 6 7 . Brawler 5 | . . . . . . . 1 . 4 . Duelist 3 | . . . . . . 1 1 . 1 . Sentry 16 | . . . . . 1 8 3 2 2 . Hunter 6 | . . . . . . 4 1 1 . . Programmer 5 | . . . . . . . 4 . 1 . Assembled 3 | . . . . 3 . . . . . . Butcher 1 | . . . . . . . . . . 1 Best Kill Streak 12 | . 3 3 . 4 6 5 6 12 4 1 Combat Bots Only 12 | . 3 3 . 4 5 5 3 12 4 1 Max Kills in Single Turn 3 | . 1 1 . 3 1 1 3 3 1 1 Gunslinging . | . . . . . . . . . . . Exploded 3 | . 1 . . 3 . 1 2 3 . . Melee . | . . . . . . . . . . . Uniques/NPCs Destroyed . | . . . . . . . . . . . Combat | -11 -10 -10 -10 -9 -8 -8 -7 -7 -7 -7 -------- Run | Scr Mat Min Exi Min Mat Sto Fac Low Low Zio Damage Taken 6792 | . 152 83 . 431 145 893 810 1158 1216 1904 Core 949 | . 30 . . 86 . 126 88 111 72 436 Absorbed by Shields . | . . . . . . . . . . . Core Remaining (%) 76 | 100 . . . 53 . 77 . . . . Volleys Fired 160 | . 15 10 . 23 . . 46 23 30 13 Largest 3 | . 2 2 . 2 . . 3 3 3 3 Hottest 240 | . 90 90 . 90 . . 240 158 208 162 Shots Fired 471 | . 30 20 . 46 44 70 97 41 84 39 Gun 132 | . 30 20 . 46 . . 9 . 7 20 Cannon 305 | . . . . . 44 70 69 27 76 19 Launcher 34 | . . . . . . . 19 14 1 . Special . | . . . . . . . . . . . Kinetic 208 | . . . . . 44 70 19 13 30 32 Thermal 133 | . . . . . . . 59 14 53 7 Explosive 34 | . . . . . . . 19 14 1 . Electromagnetic 96 | . 30 20 . 46 . . . . . . Robot Hit Streak 39 | . 3 11 . 5 15 39 13 23 22 9 Robot Miss Streak 6 | . 6 1 . 3 1 1 2 1 2 2 Penetration Max . | . . . . . . . . . . . Secondary Targets . | . . . . . . . . . . . Autonomous 127 | . . . . . 44 70 13 . . . Shots Hit Robots 340 | . 10 14 . 27 40 68 68 29 56 28 Core Hits 204 | . 7 6 . 13 15 28 63 43 24 5 Critical Hits 10 | . . . . . 2 4 1 . 2 1 Critical Kills 4 | . . . . . 1 2 . . 1 . Critical Parts Destroyed 6 | . . . . . 1 2 1 . 1 1 Melee Attacks 36 | . . . . . 4 6 26 . . . Impact 36 | . . . . . 4 6 26 . . . Slashing . | . . . . . . . . . . . Piercing . | . . . . . . . . . . . Sneak Attacks 2 | . . . . . . 2 . . . . Combat Hostiles . | . . . . . . . . . . . Follow-up Attacks . | . . . . . . . . . . . Damage Inflicted 16484 | . 134 168 . 441 3009 5455 3295 1708 1672 602 Guns 1130 | . 112 168 . 341 . . 169 . 108 232 Cannons 12324 | . . . . . 3009 5039 1919 499 1488 370 Explosions 2804 | . 22 . . 100 . 194 1203 1209 76 . Melee 222 | . . . . . . 222 . . . . Ramming 4 | . . . . . . . 4 . . . Kinetic 10141 | . . . . . 3009 5039 944 203 432 514 Thermal 2814 | . 22 . . 100 . . 1144 296 1164 88 Explosive 2682 | . . . . . . 194 1203 1209 76 . Electromagnetic 621 | . 112 168 . 341 . . . . . . Impact 222 | . . . . . . 222 . . . . Slashing . | . . . . . . . . . . . Piercing . | . . . . . . . . . . . Highest Corruption 7 | . . . . . . . 7 7 7 7 Average Corruption 6 | . . . . . . . 5 7 7 7 Corruption Purged . | . . . . . . . . . . . Effects 169 | . . . . . . . 43 55 63 8 Message Errors 57 | . . . . . . . 18 13 25 1 Matter Fused 34 | . . . . . . . 9 13 11 1 Heat Flow Errors 16 | . . . . . . . 3 5 7 1 Energy Discharges 16 | . . . . . . . 4 6 5 1 Parts Rejected 2 | . . . . . . . . 1 1 . Data Loss (minor) 15 | . . . . . . . 2 6 6 1 Data Loss (major) 8 | . . . . . . . 1 5 2 . Misfires 7 | . . . . . . . 2 3 1 1 Targeting Errors 13 | . . . . . . . 4 3 4 2 Weapon Failures 1 | . . . . . . . . . 1 . Overload Shots . | . . . . . . . . . . . Overflow Damage 1812 | . . . . . 655 827 225 36 34 35 Projectiles 1658 | . . . . . 655 730 204 . 34 35 Explosions 80 | . . . . . . 23 21 36 . . Melee 74 | . . . . . . 74 . . . . Knockbacks 46 | . . . . . 22 15 5 1 2 1 Impact . | . . . . . . . . . . . Kinetic 39 | . . . . . 17 13 5 1 2 1 Secondary 7 | . . . . . 5 2 . . . . Self-Inflicted Damage 217 | . . . . . . 72 . 122 23 . Shots 7 | . . . . . . 1 . 5 1 . Rammed 1 | . . . . . . . 1 . . . Targets Rammed 1 | . . . . . . . 1 . . . Kicked . | . . . . . . . . . . . Crushed . | . . . . . . . . . . . Highest Temperature 372 | . 322 150 . 357 . 3 372 227 324 342 Average Temperature 103 | . 138 59 . 127 . 3 98 67 94 82 Received Heat Transfer 1176 | . . . . 27 54 216 180 279 393 27 Effects 4 | . . . . . . . 4 . . . Energy Bleed 1 | . . . . . . . 1 . . . Interference 3 | . . . . . . . 3 . . . Siege Activations . | . . . . . . . . . . . Robots Corrupted . | . . . . . . . . . . . Combat Hostiles . | . . . . . . . . . . . Parts Fried 1 | . 1 . . . . . . . . . Impact Corruptions 3 | . . . . . 1 2 . . . . Robots Melted . | . . . . . . . . . . . Combat Hostiles . | . . . . . . . . . . . Parts Melted 9 | . . . . . . . 7 . 2 . Heat Transferred 5012 | . . . . . . . 2042 600 2250 120 Parts Sabotaged . | . . . . . . . . . . . Parts Stolen . | . . . . . . . . . . . Parts Stripped . | . . . . . . . . . . . Power Chain Reactions 2 | . 1 . . 1 . . . . . . Missiles Intercepted . | . . . . . . . . . . . Alert | -11 -10 -10 -10 -9 -8 -8 -7 -7 -7 -7 ------- Run | Scr Mat Min Exi Min Mat Sto Fac Low Low Zio Peak Influence 867 | . 142 85 . 170 306 698 867 . . . Initial 163 | . . 45 . . . 40 163 . . . Average 303 | . 76 52 . 78 106 461 500 . . . Maximum Alert Level 3 | . . . . . 1 2 3 . . . Low Security (%) 46 | 100 100 100 . 100 91 9 3 . . . Level 1 9 | . . . . . 8 18 13 . . . Level 2 39 | . . . . . . 72 67 . . . Level 3 5 | . . . . . . . 16 . . . Level 4 . | . . . . . . . . . . . Level 5 . | . . . . . . . . . . . High Security . | . . . . . . . . . . . Max Security . | . . . . . . . . . . . Squads Dispatched 15 | . . . . . 4 5 5 . 1 . Investigation 2 | . . . . . 1 1 . . . . Extermination 3 | . . . . . . . 3 . . . Reinforcement 4 | . . . . . . 2 2 . . . Assault 1 | . . . . . . . . . 1 . Garrison 5 | . . . . . 3 2 . . . . Intercept . | . . . . . . . . . . . Construction Impeded 2 | . . . . . . 1 1 . . . Haulers Reinforced . | . . . . . . . . . . . Stealth | -11 -10 -10 -10 -9 -8 -8 -7 -7 -7 -7 --------- Run | Scr Mat Min Exi Min Mat Sto Fac Low Low Zio Distress Signals 5 | . . . . . 2 . 3 . . . Communications Jammed . | . . . . . . . . . . . Distress Signals . | . . . . . . . . . . . Times Spotted 142 | . 14 7 . 9 19 26 27 17 20 3 Peak Tracking Total 10 | . 6 3 . 4 4 7 6 10 8 2 Tactical Retreats 11 | . . 1 . . 2 1 5 1 . 1 Traps | -11 -10 -10 -10 -9 -8 -8 -7 -7 -7 -7 ------- Run | Scr Mat Min Exi Min Mat Sto Fac Low Low Zio Traps Triggered 7 | . . . . 1 . . 6 . . . Indirectly . | . . . . . . . . . . . Trap Hack Attempts . | . . . . . . . . . . . Triggered . | . . . . . . . . . . . Disarmed . | . . . . . . . . . . . Reprogrammed . | . . . . . . . . . . . Reused . | . . . . . . . . . . . Traps Extracted . | . . . . . . . . . . . Installed . | . . . . . . . . . . . Triggered 1 | . . . . . . . . 1 . . Exploded 1 | . . . . 1 . . . . . . Machines | -11 -10 -10 -10 -9 -8 -8 -7 -7 -7 -7 ---------- Run | Scr Mat Min Exi Min Mat Sto Fac Low Low Zio Machines Disabled 13 | . 1 1 . 1 . 4 2 2 . 2 Max in Single Turn 1 | . 1 1 . 1 . 1 1 1 . 1 Garrison Access 2 | . . . . . . 1 1 . . . Machines Sabotaged . | . . . . . . . . . . . Garrisons Compromised . | . . . . . . . . . . . Overloaded Fab Kills . | . . . . . . . . . . . Fab Network Shutdowns 1 | . . . . . . . 1 . . . Hacking | -11 -10 -10 -10 -9 -8 -8 -7 -7 -7 -7 --------- Run | Scr Mat Min Exi Min Mat Sto Fac Low Low Zio Machines Accessed 51 | . 9 1 5 1 6 11 16 1 1 . Terminals 26 | . 6 . . . 5 8 6 1 . . Fabricators 3 | . . . . . . . 3 . . . Repair Stations 5 | . 1 . . . . 1 3 . . . Recycling Units 5 | . 2 . . . . 1 2 . . . Scanalyzers 2 | . . . . . 1 . 1 . . . Garrison Access 2 | . . . . . . 1 1 . . . Total Hacks 168 | . 25 1 50 1 23 32 32 3 1 . Successful 123 | . 12 1 50 1 14 23 18 3 1 . Failed 45 | . 13 . . . 9 9 14 . . . Catastrophic 5 | . 1 . . . . 2 2 . . . Database Lockouts . | . . . . . . . . . . . Manual 69 | . 19 . 1 . 17 17 15 . . . Terminals 80 | . 20 . . . 21 22 14 3 . . Fabricators 4 | . . . . . . . 4 . . . Repair Stations 14 | . 2 . . . . 6 6 . . . Recycling Units 10 | . 3 . . . . 2 5 . . . Scanalyzers 4 | . . . . . 2 . 2 . . . Garrison Access 3 | . . . . . . 2 1 . . . Terminal Hacks 83 | . 7 1 50 1 9 11 . 3 1 . Record 52 | . . . 49 . . . . 3 . . Part Schematic 3 | . 3 . . . . . . . . . Prototype ID Bank 1 | . . . . . 1 . . . . . Open Door 4 | . . 1 . 1 . 1 . . 1 . Branch Access Points 3 | . 1 . . . 1 1 . . . . Terminal Index 1 | . 1 . . . . . . . . . Alert Level 3 | . . . . . 2 1 . . . . Unreport Threat 2 | . . . . . 1 1 . . . . Locate Traps 6 | . 1 . . . 2 3 . . . . Dispatch Records 1 | . . . . . . 1 . . . . Hauler Manifests 1 | . . . . . 1 . . . . . Zone Layout 5 | . 1 . . . 1 3 . . . . EX-Prototype ID Bank 1 | . . . 1 . . . . . . . Fabricator Hacks 2 | . . . . . . . 2 . . . Build 2 | . . . . . . . 2 . . . Repair Station Hacks 8 | . . . . . . 4 4 . . . Scan Component 4 | . . . . . . 2 2 . . . Repair 4 | . . . . . . 2 2 . . . Recycling Unit Hacks 7 | . 2 . . . . 2 3 . . . Process 1 | . . . . . . . 1 . . . Report Inventory 4 | . 2 . . . . 1 1 . . . Retrieve Matter 1 | . . . . . . . 1 . . . Retrieve Components 1 | . . . . . . 1 . . . . Scanalyzer 3 | . . . . . 1 . 2 . . . Insert Component 2 | . . . . . 1 . 1 . . . Analyze 1 | . . . . . . . 1 . . . Garrison Access Hacks 1 | . . . . . . . 1 . . . Seal Access 1 | . . . . . . . 1 . . . Unauthorized Hacks 19 | . 3 . . . 4 6 6 . . . Terminals 17 | . 3 . . . 4 5 5 . . . Botnet 17 | . 3 . . . 4 5 5 . . . Fabricators 1 | . . . . . . . 1 . . . Report 1 | . . . . . . . 1 . . . Repair Stations . | . . . . . . . . . . . Recycling Units . | . . . . . . . . . . . Scanalyzers . | . . . . . . . . . . . Garrison Access 1 | . . . . . . 1 . . . . Jam 1 | . . . . . . 1 . . . . Data Cores Recovered . | . . . . . . . . . . . Used . | . . . . . . . . . . . Hacking Detections 39 | . 8 . . . 6 11 13 1 . . Full Trace Events 1 | . . . . . 1 . . . . . Feedback Events . | . . . . . . . . . . . Feedback Blocked . | . . . . . . . . . . . Robot Schematics Acquired . | . . . . . . . . . . . Robots Built . | . . . . . . . . . . . Matter . | . . . . . . . . . . . Time . | . . . . . . . . . . . Total Robot Build Rating . | . . . . . . . . . . . Part Schematics Acquired 4 | . 3 . . . . . 1 . . . Parts Built 3 | . . . . . . . 3 . . . Matter 402 | . . . . . . . 402 . . . Time 86 | . . . . . . . 86 . . . Total Part Build Rating 15 | . . . . . . . 15 . . . Parts Repaired 4 | . . . . . . 2 2 . . . Time 81 | . . . . . . 52 29 . . . Parts Recycled . | . . . . . . . . . . . Recycled Matter 24 | . . . . . . . 24 . . . Retrieved Matter 24 | . . . . . . . 24 . . . Retrieved Components 10 | . . . . . . 10 . . . . Parts Scanalyzed 2 | . . . . . 1 . 1 . . . Part Schematics Acquired 1 | . . . . . . . 1 . . . Parts Damaged . | . . . . . . . . . . . Bothacking | -11 -10 -10 -10 -9 -8 -8 -7 -7 -7 -7 ------------ Run | Scr Mat Min Exi Min Mat Sto Fac Low Low Zio Used RIF Installer . | . . . . . . . . . . . Robots Hacked . | . . . . . . . . . . . Non-combat . | . . . . . . . . . . . Combat . | . . . . . . . . . . . Robot Hacks Applied . | . . . . . . . . . . . Relay Couplers Released . | . . . . . . . . . . . Robots Rewired 2 | . . . . . . . . . 2 . Allies Hacked . | . . . . . . . . . . . Hacks Repelled . | . . . . . . . . . . . Allies | -11 -10 -10 -10 -9 -8 -8 -7 -7 -7 -7 -------- Run | Scr Mat Min Exi Min Mat Sto Fac Low Low Zio Total Allies 4 | . . 1 . . . 1 . . 2 . Largest Group 2 | . . 1 . . . 1 1 . 2 . Highest-Rated Group 99 | . . 31 . . . 99 99 . 32 . Highest-Rated Ally 99 | . . 31 . . . 99 99 . 16 . Total Orders 2 | . . . . . 1 . . . 1 . RETURN 2 | . . . . . 1 . . . 1 . Ally Attacks 22 | . . . . . . 3 . . 15 4 Total Damage 127 | . . . . . . . . . 127 . Kills . | . . . . . . . . . . . Allies Corrupted . | . . . . . . . . . . . Allies Melted . | . . . . . . . . . . . Intel | -11 -10 -10 -10 -9 -8 -8 -7 -7 -7 -7 ------- Run | Scr Mat Min Exi Min Mat Sto Fac Low Low Zio Robot Analysis Total . | . . . . . . . . . . . Derelict Logs Recovered 6 | . . 2 . 1 . . . 1 1 1 Drone Launches 12 | . . . . . 1 3 . . 3 5 Drone Recoveries 2 | . . . . . 1 . . . 1 . Exploration | -11 -10 -10 -10 -9 -8 -8 -7 -7 -7 -7 ------------- Run | Scr Mat Min Exi Min Mat Sto Fac Low Low Zio Turns Passed 11940 | 62 713 1154 912 644 503 1680 2293 1913 1863 203 Spaces Moved 6344 | 48 445 694 578 276 239 734 1113 999 1111 107 Core 12 | 12 . . . . . . . . . . Treads 3553 | . . . 129 276 239 734 1113 999 63 . Legs 2373 | 36 445 694 449 . . . . . 749 . Wheels 406 | . . . . . . . . . 299 107 Hover . | . . . . . . . . . . . Flight . | . . . . . . . . . . . Fastest Speed 50 | 50 120 150 150 180 160 160 160 160 140 130 Average Speed 164 | 102 138 150 153 180 180 185 170 179 152 132 Slowest Speed 260 | 120 150 150 180 180 200 260 180 180 220 140 Overloaded Moves . | . . . . . . . . . . . Propulsion Burnouts . | . . . . . . . . . . . Robots Hopped . | . . . . . . . . . . . Cave-ins Triggered . | . . . . . . . . . . . Exploration Rate (%) 60 | 4 67 97 93 48 35 89 32 96 99 9 Regions Visited 10 Branch Regions 7 Pre-discovered Areas 2 | . . . 1 1 . . . . . . Known Exits Taken 3 | . 1 . . . 1 1 . . . . Unknown Exits Taken 7 | 1 . 1 1 1 . . 1 1 1 . Scrap Searched 9 | . . 1 . 1 . . . 3 4 . Spaces Dug 31 | . . . . . 4 2 25 . . . Terrain Destroyed 176 | . 4 . . 4 12 26 73 41 15 1 Melee 31 | . . . . . 4 2 25 . . . Projectile 30 | . . . . . 8 8 2 3 8 1 AOE 115 | . 4 . . 4 . 16 46 38 7 . Terrain Rammed . | . . . . . . . . . . . Walls Destroyed . | . . . . . . . . . . . Machines Disabled . | . . . . . . . . . . . Actions | -11 -10 -10 -10 -9 -8 -8 -7 -7 -7 -7 --------- Run | Scr Mat Min Exi Min Mat Sto Fac Low Low Zio Total 7536 | 59 516 789 604 379 309 1052 1391 1078 1218 141 Wait 682 | . 23 74 . 73 39 245 150 35 36 7 Move 6334 | 47 444 693 577 275 238 733 1112 998 1110 107 Hop . | . . . . . . . . . . . Pick Up 69 | 6 14 3 9 2 7 7 6 5 8 2 Fast Attach 58 | 4 4 2 4 1 3 18 13 3 5 1 Attach 45 | 2 . . 4 . 5 9 5 5 9 6 Detach 28 | . 1 . 3 . 5 11 3 3 2 . Swap 29 | . 2 1 . 1 1 4 13 4 2 1 Drop 84 | . 13 6 7 4 7 19 16 2 6 4 Fire 160 | . 15 10 . 23 . . 46 23 30 13 Melee 36 | . . . . . 4 6 26 . . . Ram . | . . . . . . . . . . . Kick . | . . . . . . . . . . . Crush 1 | . . . . . . . 1 . . . Escape Stasis . | . . . . . . . . . . . Rewire 10 | . . . . . . . . . 10 . Trap . | . . . . . . . . . . . Miscellaneous . | . . . . . . . . . . . Route ------- -11/Scrapyard -10/Materials (discovered 4 exits: [*Mat x2] / *Min x2) -10/Mines (discovered 3 exits: [*Mat x2] / *Exi) -10/Exiles (discovered 2 exits: *Min x2) -9/Mines (discovered 2 exits: *Mat x2) -8/Materials (discovered 3 exits: Fac / *Sto x2) -8/Storage (discovered 2 exits: *Fac / Rec) -7/Factory (discovered 2 exits: *Fac / *Low) -7/Lower Caves -7/Lower Caves (discovered 2 exits: *Fac / [*Zio]) -7/Zion History --------- Turn | Location | Event 2 | -11/Scrapyard | Met Revision 17 4 | -11/Scrapyard | Discovered new exit (range 16) 63 | -11/Scrapyard | Entered Materials 162 | -10/Materials | Identified exit to Mines 309 | -10/Materials | Build established: Mutant 446 | -10/Materials | Discovered new exit (range 15) 569 | -10/Materials | Discovered new exit (range 16) 776 | -10/Materials | Entered Mines 782 | -10/Mines | Learned location of 1 exit from Materials 820 | -10/Mines | Found a hidden stash of uninstalled traps 878 | -10/Mines | Discovered new exit (range 15) 905 | -10/Mines | Received a Mining Laser from a helpful Derelict 911 | -10/Mines | YI-UF0 nonchalantly dropped a Grenade Launcher on the ground 941 | -10/Mines | Found the Drone Emporium 953 | -10/Mines | Found Prototype Device 1155 | -10/Mines | Found a damaged Exp. Sensor Array with a note attached 1159 | -10/Mines | Found Prototype Device 1159 | -10/Mines | Identified Exp. Sensor Array 1288 | -10/Mines | Learned Materials emergency access door positions 1410 | -10/Mines | Discovered new exit (range 7) 1923 | -10/Mines | Deemed a non-threat by the Exiles lab entrance 1924 | -10/Mines | Discovered new exit (range 5) 1930 | -10/Mines | Entered Exiles 1968 | -10/Exiles | Discovered new exit (range 15) 2019 | -10/Exiles | Met 8R-AWN 2045 | -10/Exiles | Met EX-HEX 2140 | -10/Exiles | Visited The Gauntlet 2307 | -10/Exiles | Met EX-DEC 2354 | -10/Exiles | Learned location of Zion (-7) 2409 | -10/Exiles | Met EX-BIN 2561 | -10/Exiles | Aligned with FarCom system 2562 | -10/Exiles | Given EX-Vault access code 2597 | -10/Exiles | Opened EX-Vault 2619 | -10/Exiles | Found AWS/Autocannon 2652 | -10/Exiles | Warned to stay clear of 0b10 Research branches 2744 | -10/Exiles | Identified Bomb Drone Bay 2818 | -10/Exiles | Discovered new exit (range 14) 2842 | -10/Exiles | Left Exiles lab with AWS/Autocannon 2842 | -10/Exiles | Entered Mines 2906 | -9/Mines | Met a Derelict who couldn't figure out how to use a Trap Extractor 3004 | -9/Mines | Discovered new exit (range 7) 3206 | -9/Mines | Assembled infested the area 3361 | -9/Mines | Discovered new exit (range 7) 3486 | -9/Mines | Entered Materials 3486 | -8/Materials | Evolved 4 slots: Propulsion x1, Utility x2, Weapon x1 3487 | -8/Materials | Identified exit to Factory 3763 | -8/Materials | Identified exit to Storage 3785 | -8/Materials | Garrison activated, responded to threat 3989 | -8/Materials | Entered Storage 4057 | -8/Storage | Garrison activated, responded to threat 4219 | -8/Storage | Garrison activated, responded to threat 4270 | -8/Storage | Lost 4 parts (1p2n1u) 4368 | -8/Storage | Repaired Lgt. Treads 4419 | -8/Storage | Identified exit to Recycling 5052 | -8/Storage | Met 01-MTF 5127 | -8/Storage | Build established: Scavenger-Gunner 5252 | -8/Storage | Repaired Lgt. Treads 5558 | -8/Storage | Discovered exit to Factory (range 15) 5669 | -8/Storage | Entered Factory 5669 | -7/Factory | Accompanied by 1 ally (01-MTF) 5669 | -7/Factory | Evolved 2 slots: Utility x2 5674 | -7/Factory | 01-MTF left 6061 | -7/Factory | Repaired Lgt. Treads 6224 | -7/Factory | Fabricated Adv. Transmission Jammer (x1) 6276 | -7/Factory | Build established: Mutant 6694 | -7/Factory | Discovered new exit (range 4) 6702 | -7/Factory | Identified exit to Factory 7029 | -7/Factory | Found Powered Armor 7033 | -7/Factory | Found Powered Armor 7220 | -7/Factory | Discovered new exit (range 10) 7448 | -7/Factory | Fabricated Imp. Shield Generator? 7582 | -7/Factory | Local fabrication network quarantined 7822 | -7/Factory | Repaired Imp. Treads 7962 | -7/Factory | Entered Lower Caves 7963 | -7/Lower Caves | Encountered a Warlord checkpoint 8121 | -7/Lower Caves | Destroyed 12 combat bots 8130 | -7/Lower Caves | Lost 3 parts (1n1u1w) 8130 | -7/Lower Caves | Learned Research trap positions 8152 | -7/Lower Caves | Attracted the attention of an 0b10 base 8907 | -7/Lower Caves | Discovered new exit (range 11) 8936 | -7/Lower Caves | Learned Factory machine intel 9135 | -7/Lower Caves | Build established: Gunner 9548 | -7/Lower Caves | Build established: Mutant 9875 | -7/Lower Caves | Entered another Lower Caves area 10048 | -7/Lower Caves | Attracted the attention of an 0b10 outpost 10232 | -7/Lower Caves | Attracted the attention of an 0b10 checkpoint 10291 | -7/Lower Caves | Lost 3 parts (1p1n1w) 10387 | -7/Lower Caves | Build established: Scavenger-Gunner 10753 | -7/Lower Caves | Discovered new exit (range 8) 11480 | -7/Lower Caves | Discovered exit to Factory (range 9) 11738 | -7/Lower Caves | Entered Zion 11764 | -7/Zion | Learned location of 2 exits from Factory 11773 | -7/Zion | Attacked by Zionites 11914 | -7/Zion | P1-3CE came to Zion's defense 11917 | -7/Zion | Core integrity fell below 50% 11930 | -7/Zion | Core integrity fell below 20% 11941 | -7/Zion | Destroyed by P1-3CE with P1-3CE's Gatling Flakker Last Messages --------------- 11929_ System corrupted: Hyp. Gauss Rifle targeting data glitched. 11929_ HV Slug penetrates Wall. 11929_ Destroyed Tractor Beam. 11929_ Arm. Wheel destroyed. 11931_ Slug Cannon destroyed. 11932_ HV Slug penetrates P1-3CE. 11935_ Hyp. Gauss Rifle destroyed. 11936_ System corrupted: Heat flow error (+233). 11937_ Bomb Drone released from Bomb Drone Bay. 11938_ Bomb Drone detonates. 11938_ Bomb Drone destroyed. 11939_ Bomb Drone released from Bomb Drone Bay. 11939_ Bomb Drone detonates. 11939_ Bomb Drone destroyed. 11940_ Bomb Drone released from Bomb Drone Bay. 11940_ Bomb Drone detonates. 11940_ Bomb Drone destroyed. 11941_ Bomb Drone released from Bomb Drone Bay. 11941_ Bomb Drone detonates. 11941_ Bomb Drone destroyed. Map ----- +----------------------------------------------------+ | ???????????????????????????????????????? | | ???????????????????????????????????????? | | ???????????????????????????????????????? | | ???????????????????????????????????????? | | ???????????????????????????????????????? | | ???????????????????????????????????????? | | ???????????????????????????????????????? | | ???????????????????????????????????????? | | ???????????????????????????????????????? | | ???????????????????????????????????????? | | ???????????????????????????????????????? | | ???????????????????????????????????????? | | ???????????????????????????????????????? | | ???????????????????????????????????????? | | ???????????????????????????????????????? | | ???????????????????????????????????????? | | ???????????????????????????????????????? | | ???????????????????????????????????????? | | ???????????????????????????????????????? | | ???????????????????????????????????????? | | ???????????????????????????????????????? | | ???????????????????????????????????????? | | ???????????????????????????????????????? | | ???????????????????????????????????????? | | ???????????????????????######??????????? | | ???????????????????????# @ <#??????????? | | ????????????? ???????# <#??????????? | | ????????????? #????### ####???????? | | ???????????# #??## ##??????? | | ???????????# ### n #??????? | | ???????????# #??????? | | ????????????# ##?????? | | ????????????### #?????? | | ??????????????## #?????? | | ???????????????### M ##?????? | | ?????????????????### #??????? | | ???# ????????????## #??????? | | ?? ?????????????# #??????? | | ?? ??????????#### ##??????? | | ??# ??? ?????# #####???????? | | ?## #??? ????## ##??????????? | | ## #??? ###### #??????????? | | # ##??? ## #??????????? | | ? ##??? ##### ##??????????? | | ??# ##???# #???#= ;#???????????? | | ???# #????# #???# ##????????????? | | #### #??### ##?## #?????????????? | | #### ### #?????????????? | | # #?????????????? | | ### #????????? | +----------------------------------------------------+ Best States ------------- Heat Dissipation 75 Energy Generation 18 Energy Capacity 280 Matter Stores 300 Matter Capacity 300 Sight Range 20 Robot Scan Range 30 Terrain Scan Density 10 Armor Coverage 600 Evasion (%) 50 Targeting Accuracy 14 Armor Integrity Analysis 33 Recoil Reduction 3 Item Schematics ----------------- Hcp. Storage Unit | -10/Materials | Hacked Aluminum Leg | -10/Materials | Hacked Sml. Storage Unit | -10/Materials | Hacked Imp. Light Armor Plating | -7/Factory | Scanalyzed Robot Schematics ------------------ None Fabricated ------------ Adv. Transmission Jammer | x1 | -7/Factory | Preloaded Imp. Shield Generator | x2 | -7/Factory | Preloaded Alien Tech Used ----------------- None Achievements -------------- None Challenges ------------ None Game ------ Seed CompactExperimentalTerrabomb Manual? 0 Play Time 03:01:49 Cumulative 83.8 hours Start 2021.07.13 @ 19:47:46 End 2021.07.14 @ 18:06:43 Sessions 5 Manual Loads 0 Difficulty Rogue Special Mode None Game No. 23 Rogue 23 Adventurer 0 Explorer 0 Win Type - Total 0 Types 0/0/0/0/0/0/0/0/0 Lore% 34 Gallery% 50 Achievement% 38 Wizard Run 0 Options --------- ASCII 0 Keyboard 1 Movement Numpad Keybinds 0 Fullscreen 1 Font 18/SmallcapsGlow Map View 76x50 Tactical HUD 1 Map Filters NONE Filters NONE Steam 1 RUN: 41a6a86d-7faf-463f-9289-0f4273701f15